fUST/lending_fUST_20241021
["ID","MTS","AMOUNT","RATE_DAILY","PERIOD"]
[340587732,1729517444226,-500.0,0.00016438,2]
[340587734,1729517444235,-573.10261298,0.00016438,2]
[340587736,1729517444245,-299.57837491,0.00016438,2]
[340587737,1729517444254,-843.49,0.00016438,2]
[340587739,1729517444264,-799.03,0.00016438,2]
[340587741,1729517444273,-500.0,0.00016438,2]
[340587743,1729517444282,-500.0,0.00016438,2]
[340587745,1729517444292,-545.23962103,0.00016438,2]
[340587747,1729517444302,-500.0,0.00016438,2]
[340587749,1729517444312,-1133.9,0.00016438,2]
[340587751,1729517444322,-500.0,0.00016438,2]
[340587753,1729517444332,-500.0,0.00016438,2]
[340587755,1729517444341,-500.0,0.00016438,2]
[340587757,1729517444351,-500.0,0.00016438,2]
[340587759,1729517444362,-500.0,0.00016438,2]
[340587761,1729517444372,-500.0,0.00016438,2]
[340587763,1729517444382,-500.0,0.00016438,2]
[340587765,1729517444392,-151.0,0.00016438,2]
[340587767,1729517444402,-151.0,0.00016438,2]
[340587769,1729517444412,-151.0,0.00016438,2]
[340587771,1729517444422,-500.0,0.00016438,2]
[340587773,1729517444432,-160.711346,0.00016438,2]
[340587775,1729517444442,-500.0,0.00016438,2]
[340587777,1729517444451,-500.0,0.00016438,2]
[340587779,1729517444462,-500.0,0.00016438,2]
[340587781,1729517444471,-753.67,0.00016438,2]
[340587782,1729517444481,-500.0,0.00016438,2]
[340587784,1729517444491,-777.37,0.00016438,2]
[340587786,1729517444500,-500.0,0.00016438,2]
[340587788,1729517444510,-500.0,0.00016438,2]
[340587790,1729517444520,-500.0,0.00016438,2]
[340587791,1729517444530,-500.0,0.00016438,2]
[340587793,1729517444540,-500.0,0.00016438,2]
[340587795,1729517444550,-479.98010519,0.00016438,2]
[340587797,1729517444559,-500.0,0.00016438,2]
[340587799,1729517444570,-1632.53,0.00016438,2]
[340587801,1729517444580,-570.6707957,0.00016438,2]
[340587803,1729517444591,-976.85,0.00016438,2]
[340587805,1729517444600,-500.0,0.00016438,2]
[340587807,1729517444610,-500.0,0.00016438,2]
[340587809,1729517444620,-500.0,0.00016438,2]
[340587811,1729517444630,-500.0,0.00016438,2]
[340587813,1729517444640,-151.0,0.00016438,2]
[340587815,1729517444651,-151.0,0.00016438,2]
[340587817,1729517444662,-151.0,0.00016438,2]
[340587819,1729517444672,-500.0,0.00016438,2]
[340587820,1729517444682,-151.0,0.00016438,2]
[340587822,1729517444692,-151.0,0.00016438,2]
[340587824,1729517444703,-500.0,0.00016438,2]
[340587826,1729517444714,-1115.26,0.00016438,2]
[340587828,1729517444724,-500.0,0.00016438,2]
[340587830,1729517444735,-1772.24,0.00016438,2]
[340587832,1729517444746,-500.0,0.00016438,2]
[340587834,1729517444757,-500.0,0.00016438,2]
[340587836,1729517444767,-505.11202141,0.00016438,2]
[340587838,1729517444778,-1887.87,0.00016438,2]
[340587840,1729517444787,-500.0,0.00016438,2]
[340587842,1729517444798,-500.0,0.00016438,2]
[340587844,1729517444808,-500.0,0.00016438,2]
[340587846,1729517444818,-500.0,0.00016438,2]
[340587848,1729517444828,-500.0,0.00016438,2]
[340587850,1729517444840,-711.88,0.00016438,2]
[340587852,1729517444852,-500.0,0.00016438,2]
[340587853,1729517444862,-500.0,0.00016438,2]
[340587855,1729517444873,-500.0,0.00016438,2]
[340587857,1729517444883,-500.0,0.00016438,2]
[340587859,1729517444892,-500.0,0.00016438,2]
[340587861,1729517444903,-500.0,0.00016438,2]
[340587863,1729517444914,-500.0,0.00016438,2]
[340587865,1729517444925,-713.84,0.00016438,2]
[340587867,1729517444934,-500.0,0.00016438,2]
[340587868,1729517444945,-770.94,0.00016438,2]
[340587870,1729517444955,-2044.72,0.00016438,2]
[340587872,1729517444965,-500.0,0.00016438,2]
[340587874,1729517444974,-500.0,0.00016438,2]
[340587876,1729517444984,-500.0,0.00016438,2]
[340587878,1729517444994,-897.94,0.00016438,2]
[340587880,1729517445005,-500.0,0.00016438,2]
[340587882,1729517445015,-500.0,0.00016438,2]
[340587884,1729517445025,-500.0,0.00016438,2]
[340587885,1729517445035,-1295.11,0.00016438,2]
[340587887,1729517445045,-500.0,0.00016438,2]
[340587889,1729517445055,-1931.58,0.00016438,2]
[340587891,1729517445065,-500.0,0.00016438,2]
[340587893,1729517445075,-500.0,0.00016438,2]
[340587895,1729517445086,-491.14728414,0.00016438,2]
[340587897,1729517445096,-780.39,0.00016438,2]
[340587899,1729517445106,-988.3,0.00016438,2]
[340587900,1729517445117,-354.22677469,0.00016438,2]
[340587902,1729517445128,-500.0,0.00016438,2]
[340587904,1729517445138,-493.22837232,0.00016438,2]
[340587906,1729517445149,-243.10487284,0.00016438,2]
[340587908,1729517445159,-502.71,0.00016438,2]
[340587910,1729517445169,-785.25,0.00016438,2]
[340587912,1729517445179,-500.0,0.00016438,2]
[340587914,1729517445191,-151.0,0.00016438,2]
[340587916,1729517445202,-500.0,0.00016438,2]
[340587917,1729517445212,-151.0,0.00016438,2]
[340587919,1729517445222,-151.0,0.00016438,2]
[340587921,1729517445232,-151.0,0.00016438,2]
[340587923,1729517445242,-151.0,0.00016438,2]
[340587925,1729517445252,-1156.75,0.00016438,2]
[340587927,1729517445261,-2396.42,0.00016438,2]
[340587929,1729517445271,-151.0,0.00016438,2]
[340587931,1729517445282,-511.65,0.00016438,2]
[340587933,1729517445292,-151.0,0.00016438,2]
[340587934,1729517445301,-500.0,0.00016438,2]
[340587936,1729517445311,-2233.07,0.00016438,2]
[340587938,1729517445321,-1504.73,0.00016438,2]
[340587940,1729517445332,-1258.95,0.00016438,2]
[340587942,1729517445343,-500.0,0.00016438,2]
[340587944,1729517445354,-500.0,0.00016438,2]
[340587946,1729517445364,-404.67113188,0.00016438,2]
[340587947,1729517445374,-500.0,0.00016438,2]
[340587949,1729517445384,-500.0,0.00016438,2]
[340587951,1729517445395,-512.14500545,0.00016438,2]
[340587953,1729517445406,-353.39670182,0.00016438,2]
[340587955,1729517445416,-902.44,0.00016438,2]
[340587957,1729517445427,-1039.57,0.00016438,2]
[340587959,1729517445436,-2000.83,0.00016438,2]
[340587960,1729517445447,-500.0,0.00016438,2]
[340587962,1729517445457,-500.0,0.00016438,2]
[340587964,1729517445469,-2392.25,0.00016438,2]
[340587966,1729517445479,-773.73,0.00016438,2]
[340587968,1729517445490,-773.73,0.00016438,2]
[340587970,1729517445500,-773.73,0.00016438,2]
[340587972,1729517445511,-773.73,0.00016438,2]
[340587974,1729517445522,-773.73,0.00016438,2]
[340587976,1729517445532,-773.73,0.00016438,2]
[340587978,1729517445543,-773.73,0.00016438,2]
[340587980,1729517445553,-773.73,0.00016438,2]
[340587982,1729517445562,-213.07866943,0.00016438,2]
[340587984,1729517445573,-773.73,0.00016438,2]
[340587986,1729517445583,-773.73,0.00016438,2]
[340587988,1729517445593,-773.73,0.00016438,2]
[340587990,1729517445603,-773.73,0.00016438,2]
[340587992,1729517445613,-500.0,0.00016438,2]
[340587994,1729517445623,-773.73,0.00016438,2]
[340587996,1729517445632,-773.73,0.00016438,2]
[340587998,1729517445642,-773.73,0.00016438,2]
[340588000,1729517445654,-542.84091426,0.00016438,2]
[340588002,1729517445664,-500.0,0.00016438,2]
[340588004,1729517445675,-773.73,0.00016438,2]
[340588006,1729517445685,-773.73,0.00016438,2]
[340588008,1729517445696,-773.73,0.00016438,2]
[340588009,1729517445706,-773.73,0.00016438,2]
[340588011,1729517445717,-773.73,0.00016438,2]
[340588013,1729517445727,-2003.89,0.00016438,2]
[340588015,1729517445737,-773.73,0.00016438,2]
[340588017,1729517445746,-773.73,0.00016438,2]
[340588019,1729517445757,-503.07827068,0.00016438,2]
[340588021,1729517445767,-773.73,0.00016438,2]
[340588023,1729517445777,-773.76983704,0.00016438,2]
[340588025,1729517445786,-500.0,0.00016438,2]
[340588027,1729517445796,-811.46,0.00016438,2]
[340588029,1729517445805,-500.0,0.00016438,2]
[340588030,1729517445815,-215.97033511,0.00016438,2]
[340588031,1729517445823,-500.0,0.00016438,2]
[340588032,1729517445833,-500.0,0.00016438,2]
[340588033,1729517445843,-783.51,0.00016438,2]
[340588034,1729517445855,-500.0,0.00016438,2]
[340588035,1729517445865,-500.0,0.00016438,2]
[340588036,1729517445874,-1697.81,0.00016438,2]
[340588038,1729517445884,-500.0,0.00016438,2]
[340588040,1729517445895,-867.59,0.00016438,2]
[340588042,1729517445905,-2853.81,0.00016438,2]
[340588043,1729517445915,-1766.07,0.00016438,2]
[340588044,1729517445925,-500.0,0.00016438,2]
[340588045,1729517445935,-500.0,0.00016438,2]
[340588046,1729517445946,-212.96479063,0.00016438,2]
[340588047,1729517445956,-500.0,0.00016438,2]
[340588048,1729517445967,-500.0,0.00016438,2]
[340588049,1729517445977,-500.0,0.00016438,2]
[340588050,1729517445987,-1986.86,0.00016438,2]
[340588051,1729517445997,-692.87,0.00016438,2]
[340588052,1729517446007,-973.92,0.00016438,2]
[340588053,1729517446017,-1610.64,0.00016438,2]
[340588077,1729517446027,-827.16,0.00016438,2]
[340588084,1729517446255,-504.85147362,0.00016438,2]
[340588086,1729517446264,-500.0,0.00016438,2]
[340588088,1729517446275,-1407.42,0.00016438,2]
[340588090,1729517446285,-305.22878819,0.00016438,2]
[340588092,1729517446294,-571.352854,0.00016438,2]
[340588093,1729517446304,-3141.05,0.00016438,2]
[340588096,1729517446314,-500.0,0.00016438,2]
[340588098,1729517446325,-529.08104172,0.00016438,2]
[340588100,1729517446335,-500.0,0.00016438,2]
[340588101,1729517446344,-500.0,0.00016438,2]
[340588104,1729517446355,-500.0,0.00016438,2]
[340588106,1729517446366,-2014.02,0.00016438,2]
[340588108,1729517446377,-500.0,0.00016438,2]
[340588110,1729517446387,-500.0,0.00016438,2]
[340588111,1729517446397,-500.0,0.00016438,2]
[340588113,1729517446407,-497.78967187,0.00016438,2]
[340588115,1729517446416,-2935.77,0.00016438,2]
[340588117,1729517446426,-501.32907887,0.00016438,2]
[340588119,1729517446435,-541.63004014,0.00016438,2]
[340588121,1729517446445,-2822.92,0.00016438,2]
[340588123,1729517446456,-512.71989966,0.00016438,2]
[340588125,1729517446466,-833.64,0.00016438,2]
[340588127,1729517446475,-1002.27,0.00016438,2]
[340588129,1729517446485,-1578.25,0.00016438,2]
[340588131,1729517446496,-1168.51,0.00016438,2]
[340588133,1729517446507,-500.0,0.00016438,2]
[340588135,1729517446516,-500.0,0.00016438,2]
[340588137,1729517446526,-471.76501859,0.00016438,2]
[340588139,1729517446536,-1864.24,0.00016438,2]
[340588141,1729517446546,-500.0,0.00016438,2]
[340588143,1729517446555,-500.0,0.00016438,2]
[340588145,1729517446565,-500.0,0.00016438,2]
[340588147,1729517446575,-650.91,0.00016438,2]
[340588149,1729517446585,-500.0,0.00016438,2]
[340588151,1729517446595,-1795.6,0.00016438,2]
[340588153,1729517446604,-1073.1,0.00016438,2]
[340588155,1729517446615,-381.170813,0.00016438,2]
[340588157,1729517446624,-381.170813,0.00016438,2]
[340588159,1729517446634,-501.36486751,0.00016438,2]
[340588161,1729517446644,-566.92533978,0.00016438,2]
[340588163,1729517446654,-381.170813,0.00016438,2]
[340588164,1729517446664,-500.0,0.00016438,2]
[340588166,1729517446673,-381.170813,0.00016438,2]
[340588168,1729517446683,-381.170813,0.00016438,2]
[340588170,1729517446692,-381.170813,0.00016438,2]
[340588172,1729517446702,-381.170822,0.00016438,2]
[340588174,1729517446712,-500.0,0.00016438,2]
[340588176,1729517446721,-1516.75,0.00016438,2]
[340588178,1729517446730,-928.87,0.00016438,2]
[340588180,1729517446740,-533.11011294,0.00016438,2]
[340588182,1729517446750,-565.01,0.00016438,2]
[340588184,1729517446760,-500.0,0.00016438,2]
[340588186,1729517446770,-1638.95,0.00016438,2]
[340588188,1729517446780,-500.0,0.00016438,2]
[340588190,1729517446790,-1080.78,0.00016438,2]
[340588192,1729517446800,-500.0,0.00016438,2]
[340588194,1729517446810,-539.78,0.00016438,2]
[340588196,1729517446820,-501.38190217,0.00016438,2]
[340588198,1729517446829,-500.0,0.00016438,2]
[340588200,1729517446844,-500.0,0.00016438,2]
[340588202,1729517446855,-500.0,0.00016438,2]
[340588204,1729517446866,-500.0,0.00016438,2]
[340588206,1729517446875,-1110.57,0.00016438,2]
[340588207,1729517446885,-501.05908773,0.00016438,2]
[340588209,1729517446895,-859.66,0.00016438,2]
[340588211,1729517446905,-500.0,0.00016438,2]
[340588213,1729517446915,-500.0,0.00016438,2]
[340588215,1729517446924,-951.38,0.00016438,2]
[340588217,1729517446934,-1755.31,0.00016438,2]
[340588219,1729517446945,-500.0,0.00016438,2]
[340588221,1729517446956,-500.0,0.00016438,2]
[340588223,1729517446966,-500.0,0.00016438,2]
[340588225,1729517446976,-500.0,0.00016438,2]
[340588227,1729517446985,-587.65423772,0.00016438,2]
[340588229,1729517446995,-1832.97,0.00016438,2]
[340588231,1729517447005,-500.0,0.00016438,2]
[340588233,1729517447015,-500.0,0.00016438,2]
[340588235,1729517447025,-500.0,0.00016438,2]
[340588237,1729517447034,-1654.01,0.00016438,2]
[340588239,1729517447045,-500.0,0.00016438,2]
[340588241,1729517447054,-500.0,0.00016438,2]
[340588243,1729517447065,-2652.41,0.00016438,2]
[340588245,1729517447075,-500.0,0.00016438,2]
[340588247,1729517447085,-501.46177585,0.00016438,2]
[340588249,1729517447095,-500.0,0.00016438,2]
[340588251,1729517447104,-1809.44,0.00016438,2]
[340588253,1729517447115,-531.75231897,0.00016438,2]
[340588255,1729517447127,-751.43,0.00016438,2]
[340588257,1729517447138,-500.0,0.00016438,2]
[340588259,1729517447148,-1994.75,0.00016438,2]
[340588261,1729517447158,-1665.13,0.00016438,2]
[340588263,1729517447168,-500.0,0.00016438,2]
[340588265,1729517447178,-938.14,0.00016438,2]
[340588267,1729517447188,-500.0,0.00016438,2]
[340588269,1729517447198,-2009.5,0.00016438,2]
[340588271,1729517447207,-1414.36,0.00016438,2]
[340588273,1729517447217,-174.666284,0.00016438,2]
[340588275,1729517447227,-500.0,0.00016438,2]
[340588277,1729517447236,-174.666284,0.00016438,2]
[340588279,1729517447246,-174.666284,0.00016438,2]
[340588281,1729517447259,-174.666284,0.00016438,2]
[340588283,1729517447269,-174.666284,0.00016438,2]
[340588285,1729517447279,-500.0,0.00016438,2]
[340588287,1729517447288,-174.666284,0.00016438,2]
[340588289,1729517447298,-174.666284,0.00016438,2]
[340588291,1729517447308,-174.666284,0.00016438,2]
[340588293,1729517447318,-505.84243887,0.00016438,2]
[340588295,1729517447327,-174.666284,0.00016438,2]
[340588297,1729517447339,-174.666291,0.00016438,2]
[340588299,1729517447348,-428.48039697,0.00016438,2]
[340588301,1729517447358,-1915.53,0.00016438,2]
[340588303,1729517447368,-500.0,0.00016438,2]
[340588305,1729517447378,-500.0,0.00016438,2]
[340588307,1729517447388,-500.0,0.00016438,2]
[340588309,1729517447398,-1947.32,0.00016438,2]
[340588311,1729517447408,-500.0,0.00016438,2]
[340588313,1729517447418,-1372.31,0.00016438,2]
[340588315,1729517447428,-500.0,0.00016438,2]
[340588316,1729517447437,-500.0,0.00016438,2]
[340588318,1729517447447,-500.0,0.00016438,2]
[340588320,1729517447457,-500.0,0.00016438,2]
[340588322,1729517447467,-500.0,0.00016438,2]
[340588324,1729517447477,-500.0,0.00016438,2]
[340588326,1729517447487,-500.0,0.00016438,2]
[340588328,1729517447498,-500.0,0.00016438,2]
[340588330,1729517447507,-1620.76,0.00016438,2]
[340588332,1729517447517,-500.0,0.00016438,2]
[340588334,1729517447526,-528.72844537,0.00016438,2]
[340588336,1729517447536,-500.0,0.00016438,2]
[340588339,1729517447548,-575.09630823,0.00016438,2]
[340588340,1729517447558,-500.0,0.00016438,2]
[340588343,1729517447570,-501.65059839,0.00016438,2]
[340588345,1729517447579,-500.0,0.00016438,2]
[340588347,1729517447591,-500.0,0.00016438,2]
[340588349,1729517447601,-500.0,0.00016438,2]
[340588350,1729517447610,-922.86,0.00016438,2]
[340588352,1729517447619,-500.0,0.00016438,2]
[340588354,1729517447629,-1160.54,0.00016438,2]
[340588356,1729517447638,-500.0,0.00016438,2]
[340588358,1729517447647,-577.47067576,0.00016438,2]
[340588360,1729517447657,-500.0,0.00016438,2]
[340588362,1729517447666,-500.0,0.00016438,2]
[340588364,1729517447676,-1247.31,0.00016438,2]
[340588366,1729517447686,-500.0,0.00016438,2]
[340588368,1729517447696,-467.964713,0.00016438,2]
[340588370,1729517447706,-467.964713,0.00016438,2]
[340588372,1729517447716,-500.0,0.00016438,2]
[340588374,1729517447726,-500.0,0.00016438,2]
[340588376,1729517447736,-467.964713,0.00016438,2]
[340588378,1729517447746,-500.0,0.00016438,2]
[340588380,1729517447756,-467.964713,0.00016438,2]
[340588382,1729517447767,-1164.71,0.00016438,2]
[340588384,1729517447776,-500.0,0.00016438,2]
[340588386,1729517447786,-467.964713,0.00016438,2]
[340588388,1729517447797,-1657.83,0.00016438,2]
[340588390,1729517447807,-467.964713,0.00016438,2]
[340588392,1729517447816,-467.964713,0.00016438,2]
[340588394,1729517447826,-467.964721,0.00016438,2]
[340588396,1729517447836,-500.0,0.00016438,2]
[340588398,1729517447845,-500.0,0.00016438,2]
[340588400,1729517447860,-500.0,0.00016438,2]
[340588402,1729517447870,-2017.1,0.00016438,2]
[340588404,1729517447879,-1000.0,0.00016438,2]
[340588406,1729517447890,-2474.07,0.00016438,2]
[340588408,1729517447899,-500.0,0.00016438,2]
[340588410,1729517447909,-778.86,0.00016438,2]
[340588412,1729517447919,-500.0,0.00016438,2]
[340588414,1729517447929,-2153.52,0.00016438,2]
[340588416,1729517447939,-500.0,0.00016438,2]
[340588418,1729517447948,-500.0,0.00016438,2]
[340588420,1729517447958,-732.63,0.00016438,2]
[340588422,1729517447969,-500.0,0.00016438,2]
[340588424,1729517447979,-3968.21,0.00016438,2]
[340588426,1729517447989,-1070.91,0.00016438,2]
[340588428,1729517447999,-500.0,0.00016438,2]
[340588430,1729517448008,-1596.73,0.00016438,2]
[340588432,1729517448018,-2013.32,0.00016438,2]
[340588435,1729517448028,-2421.94,0.00016438,2]
[340588436,1729517448037,-500.0,0.00016438,2]
[340588438,1729517448047,-500.0,0.00016438,2]
[340588440,1729517448057,-500.0,0.00016438,2]
[340588442,1729517448067,-1105.1,0.00016438,2]
[340588445,1729517448078,-999.89,0.00016438,2]
[340588447,1729517448089,-500.0,0.00016438,2]
[340588448,1729517448099,-500.0,0.00016438,2]
[340588450,1729517448108,-1375.99,0.00016438,2]
[340588452,1729517448120,-3395.93,0.00016438,2]
[340588454,1729517448130,-1155.88,0.00016438,2]
[340588456,1729517448140,-500.0,0.00016438,2]
[340588458,1729517448149,-500.0,0.00016438,2]
[340588460,1729517448159,-500.0,0.00016438,2]
[340588462,1729517448168,-500.0,0.00016438,2]
[340588464,1729517448178,-500.0,0.00016438,2]
[340588466,1729517448188,-987.38,0.00016438,2]
[340588468,1729517448198,-1484.89,0.00016438,2]
[340588470,1729517448207,-500.0,0.00016438,2]
[340588472,1729517448216,-719.68,0.00016438,2]
[340588474,1729517448226,-1077.41,0.00016438,2]
[340588476,1729517448235,-809.88,0.00016438,2]
[340588478,1729517448245,-500.0,0.00016438,2]
[340588480,1729517448254,-217.215074,0.00016438,2]
[340588482,1729517448264,-217.215074,0.00016438,2]
[340588484,1729517448274,-217.215074,0.00016438,2]
[340588486,1729517448283,-480.29416,0.00016438,2]
[340588488,1729517448293,-217.215074,0.00016438,2]
[340588490,1729517448302,-480.29416,0.00016438,2]
[340588492,1729517448312,-480.294155,0.00016438,2]
[340588494,1729517448322,-591.17,0.00016438,2]
[340588496,1729517448331,-500.0,0.00016438,2]
[340588498,1729517448343,-736.37,0.00016438,2]
[340588500,1729517448352,-151.0,0.00016438,2]
[340588502,1729517448361,-217.215074,0.00016438,2]
[340588504,1729517448371,-151.0,0.00016438,2]
[340588506,1729517448380,-500.0,0.00016438,2]
[340588508,1729517448390,-217.215074,0.00016438,2]
[340588510,1729517448400,-271.29624,0.00016438,2]
[340588512,1729517448410,-217.215074,0.00016438,2]
[340588514,1729517448420,-217.215068,0.00016438,2]
[340588516,1729517448429,-500.0,0.00016438,2]
[340588518,1729517448439,-500.0,0.00016438,2]
[340588520,1729517448448,-235.105864,0.00016438,2]
[340588522,1729517448458,-1522.66,0.00016438,2]
[340588524,1729517448468,-235.105864,0.00016438,2]
[340588526,1729517448477,-500.0,0.00016438,2]
[340588528,1729517448486,-235.105864,0.00016438,2]
[340588530,1729517448496,-500.0,0.00016438,2]
[340588532,1729517448505,-500.0,0.00016438,2]
[340588534,1729517448515,-235.105864,0.00016438,2]
[340588536,1729517448524,-235.105864,0.00016438,2]
[340588538,1729517448534,-1277.1,0.00016438,2]
[340588540,1729517448544,-235.105874,0.00016438,2]
[340588542,1729517448554,-500.0,0.00016438,2]
[340588544,1729517448565,-8255.8,0.00016438,2]
[340588546,1729517448576,-1920.74,0.00016438,2]
[340588548,1729517448588,-500.0,0.00016438,2]
[340588549,1729517448597,-500.0,0.00016438,2]
[340588550,1729517448607,-500.0,0.00016438,2]
[340588551,1729517448617,-1462.8,0.00016438,2]
[340588552,1729517448626,-1360.91,0.00016438,2]
[340588553,1729517448635,-2136.61,0.00016438,2]
[340588558,1729517448707,-1105.8,0.00016438,2]
[340588560,1729517448716,-500.0,0.00016438,2]
[340588562,1729517448726,-500.0,0.00016438,2]
[340588564,1729517448736,-500.0,0.00016438,2]
[340588566,1729517448746,-500.0,0.00016438,2]
[340588568,1729517448756,-2087.75,0.00016438,2]
[340588570,1729517448766,-500.0,0.00016438,2]
[340588572,1729517448776,-500.0,0.00016438,2]
[340588574,1729517448786,-931.87,0.00016438,2]
[340588576,1729517448795,-1203.08,0.00016438,2]
[340588578,1729517448805,-675.73,0.00016438,2]
[340588580,1729517448815,-990.23,0.00016438,2]
[340588582,1729517448825,-872.07,0.00016438,2]
[340588584,1729517448836,-661.51,0.00016438,2]
[340588586,1729517448849,-500.0,0.00016438,2]
[340588588,1729517448861,-698.61,0.00016438,2]
[340588590,1729517448870,-500.0,0.00016438,2]
[340588592,1729517448879,-500.0,0.00016438,2]
[340588594,1729517448888,-500.0,0.00016438,2]
[340588596,1729517448899,-500.0,0.00016438,2]
[340588597,1729517448908,-500.0,0.00016438,2]
[340588599,1729517448917,-500.0,0.00016438,2]
[340588601,1729517448927,-4225.34,0.00016438,2]
[340588603,1729517448936,-500.0,0.00016438,2]
[340588605,1729517448946,-1247.8,0.00016438,2]
[340588607,1729517448956,-500.0,0.00016438,2]
[340588609,1729517448965,-500.0,0.00016438,2]
[340588611,1729517448975,-623.06,0.00016438,2]
[340588613,1729517448986,-151.0,0.00016438,2]
[340588615,1729517448996,-500.0,0.00016438,2]
[340588617,1729517449006,-151.0,0.00016438,2]
[340588619,1729517449015,-151.0,0.00016438,2]
[340588621,1729517449025,-500.0,0.00016438,2]
[340588623,1729517449035,-324.166657,0.00016438,2]
[340588626,1729517449045,-500.0,0.00016438,2]
[340588627,1729517449055,-324.166657,0.00016438,2]
[340588629,1729517449065,-324.166657,0.00016438,2]
[340588631,1729517449074,-500.0,0.00016438,2]
[340588633,1729517449084,-500.0,0.00016438,2]
[340588635,1729517449100,-907.28,0.00016438,2]
[340588637,1729517449110,-324.166657,0.00016438,2]
[340588639,1729517449119,-324.166657,0.00016438,2]
[340588641,1729517449129,-324.166661,0.00016438,2]
[340588643,1729517449138,-500.0,0.00016438,2]
[340588645,1729517449148,-500.0,0.00016438,2]
[340588647,1729517449159,-1290.1,0.00016438,2]
[340588649,1729517449169,-1424.14,0.00016438,2]
[340588651,1729517449178,-579.94167964,0.00016438,2]
[340588653,1729517449188,-943.98,0.00016438,2]
[340588655,1729517449199,-500.0,0.00016438,2]
[340588657,1729517449209,-500.0,0.00016438,2]
[340588659,1729517449219,-500.0,0.00016438,2]
[340588661,1729517449228,-500.0,0.00016438,2]
[340588663,1729517449238,-1297.04,0.00016438,2]
[340588665,1729517449247,-500.0,0.00016438,2]
[340588667,1729517449257,-1729.67,0.00016438,2]
[340588669,1729517449267,-500.0,0.00016438,2]
[340588671,1729517449276,-500.0,0.00016438,2]
[340588673,1729517449286,-1595.37,0.00016438,2]
[340588675,1729517449296,-500.0,0.00016438,2]
[340588677,1729517449306,-500.0,0.00016438,2]
[340588679,1729517449315,-151.0,0.00016438,2]
[340588680,1729517449324,-3478.0,0.00016438,2]
[340588682,1729517449334,-297.4186,0.00016438,2]
[340588685,1729517449348,-861.61,0.00016438,2]
[340588686,1729517449358,-500.0,0.00016438,2]
[340588688,1729517449367,-500.0,0.00016438,2]
[340588690,1729517449376,-866.92,0.00016438,2]
[340588692,1729517449386,-791.97,0.00016438,2]
[340588694,1729517449396,-500.0,0.00016438,2]
[340588696,1729517449405,-252.161024,0.00016438,2]
[340588698,1729517449415,-500.0,0.00016438,2]
[340588700,1729517449424,-252.161024,0.00016438,2]
[340588702,1729517449433,-252.161024,0.00016438,2]
[340588704,1729517449443,-268.692063,0.00016438,2]
[340588706,1729517449452,-252.161024,0.00016438,2]
[340588708,1729517449461,-268.692063,0.00016438,2]
[340588710,1729517449471,-1580.59,0.00016438,2]
[340588712,1729517449481,-268.692063,0.00016438,2]
[340588714,1729517449491,-268.692063,0.00016438,2]
[340588716,1729517449500,-1614.17,0.00016438,2]
[340588718,1729517449509,-162.326593,0.00016438,2]